[Event "Titled Tuesday Blitz June 21 Early 2022"]
[White "Aradhya, Garg"]
[Black "Jobava, Baadur"]
[WhiteFideId "25006746"]
[BlackFideId "13601520"]
[WhiteElo "2203"]
[BlackElo "2617"]
[Result "0-1"]
[Round "04"]
[TimeControl "180+1"]
[Date "2022.06.21"]
[WhiteClock "0:00:08"]
[BlackClock "0:00:52"]

1. d4 {[%clk 0:02:59]}  c6 {[%clk 0:03:00]} 2. Nf3 {[%clk 0:02:58]}  d5 {[%clk 0:03:01]} 3. Bf4 {[%clk 0:02:57]}  Nf6 {[%clk 0:03:02]} 4. e3 {[%clk 0:02:58]}  Bf5 {[%clk 0:03:03]} 5. c4 {[%clk 0:02:58]}  e6 {[%clk 0:03:04]} 6. Nc3 {[%clk 0:02:58]}  Nbd7 {[%clk 0:03:03]} 7. Bd3 {[%clk 0:02:57]}  Bxd3 {[%clk 0:03:03]} 8. Qxd3 {[%clk 0:02:58]}  Be7 {[%clk 0:03:04]} 9. O-O {[%clk 0:02:58]}  O-O {[%clk 0:03:04]} 10. h3 {[%clk 0:02:58]}  Ne4 {[%clk 0:03:05]} 11. Nxe4 {[%clk 0:02:57]}  dxe4 {[%clk 0:03:06]} 12. Qxe4 {[%clk 0:02:58]}  Nf6 {[%clk 0:03:07]} 13. Qc2 {[%clk 0:02:58]}  a5 {[%clk 0:03:08]} 14. Rfd1 {[%clk 0:02:56]}  h6 {[%clk 0:03:08]} 15. e4 {[%clk 0:02:57]}  a4 {[%clk 0:03:09]} 16. e5 {[%clk 0:02:55]}  Nd7 {[%clk 0:03:09]} 17. d5 {[%clk 0:02:55]}  cxd5 {[%clk 0:03:09]} 18. cxd5 {[%clk 0:02:55]}  exd5 {[%clk 0:03:06]} 19. Rxd5 {[%clk 0:02:55]}  Qe8 {[%clk 0:03:06]} 20. Qc7 {[%clk 0:02:53]}  Nb8 {[%clk 0:02:54]} 21. Ra5 {[%clk 0:01:55]}  Bd8 {[%clk 0:02:51]} 22. Qxd8 {[%clk 0:01:54]}  Qxd8 {[%clk 0:02:51]} 23. Rxa8 {[%clk 0:01:55]}  Qb6 {[%clk 0:02:42]} 24. e6 {[%clk 0:01:52]}  Nc6 {[%clk 0:02:31]} 25. exf7+ {[%clk 0:01:24]}  Kxf7 {[%clk 0:02:32]} 26. Rxa4 {[%clk 0:01:23]}  Qxb2 {[%clk 0:02:30]} 27. Rd1 {[%clk 0:01:23]}  Kg8 {[%clk 0:02:30]} 28. Re1 {[%clk 0:00:59]}  b5 {[%clk 0:02:27]} 29. Ra6 {[%clk 0:00:56]}  Rxf4 {[%clk 0:02:21]} 30. Rxc6 {[%clk 0:00:56]}  Qxa2 {[%clk 0:02:22]} 31. Rb6 {[%clk 0:00:56]}  b4 {[%clk 0:02:16]} 32. Re8+ {[%clk 0:00:56]}  Kh7 {[%clk 0:02:16]} 33. Reb8 {[%clk 0:00:55]}  Rc4 {[%clk 0:02:05]} 34. Rxb4 {[%clk 0:00:50]}  Rc1+ {[%clk 0:02:05]} 35. Kh2 {[%clk 0:00:49]}  Qxf2 {[%clk 0:02:06]} 36. R8b7 {[%clk 0:00:47]}  Qc5 {[%clk 0:01:30]} 37. Rg4 {[%clk 0:00:39]}  Qd6+ {[%clk 0:01:28]} 38. Rg3 {[%clk 0:00:38]}  Rc7 {[%clk 0:01:27]} 39. Rxc7 {[%clk 0:00:38]}  Qxc7 {[%clk 0:01:28]} 40. h4 {[%clk 0:00:38]}  Qf4 {[%clk 0:01:25]} 41. Kh3 {[%clk 0:00:38]}  Qf5+ {[%clk 0:01:25]} 42. Kh2 {[%clk 0:00:37]}  g6 {[%clk 0:01:24]} 43. Rh3 {[%clk 0:00:35]}  Qf4+ {[%clk 0:01:24]} 44. Rg3 {[%clk 0:00:34]}  Kg7 {[%clk 0:01:24]} 45. Kh3 {[%clk 0:00:34]}  Qf5+ {[%clk 0:01:24]} 46. Kh2 {[%clk 0:00:34]}  Kf6 {[%clk 0:01:25]} 47. Rh3 {[%clk 0:00:33]}  Qf4+ {[%clk 0:01:25]} 48. Kg1 {[%clk 0:00:33]}  Kf5 {[%clk 0:01:25]} 49. Nh2 {[%clk 0:00:19]}  Qd4+ {[%clk 0:01:21]} 50. Kf1 {[%clk 0:00:19]}  Ke6 {[%clk 0:01:14]} 51. h5 {[%clk 0:00:12]}  g5 {[%clk 0:01:12]} 52. g4 {[%clk 0:00:11]}  Kd5 {[%clk 0:01:10]} 53. Rf3 {[%clk 0:00:10]}  Ke4 {[%clk 0:01:10]} 54. Kg2 {[%clk 0:00:06]}  Qd2+ {[%clk 0:01:09]} 55. Rf2 {[%clk 0:00:06]}  Qe3 {[%clk 0:01:08]} 56. Nf1 {[%clk 0:00:05]}  Qd4 {[%clk 0:01:01]} 57. Ng3+ {[%clk 0:00:06]}  Ke5 {[%clk 0:01:01]} 58. Re2+ {[%clk 0:00:06]}  Kf4 {[%clk 0:00:58]} 59. Nf5 {[%clk 0:00:06]}  Qd5+ {[%clk 0:00:57]} 60. Kh2 {[%clk 0:00:05]}  Qf3 {[%clk 0:00:57]} 61. Rg2 {[%clk 0:00:05]}  Qc6 {[%clk 0:00:55]} 62. Rg1 {[%clk 0:00:04]}  Qb6 {[%clk 0:00:50]} 63. Rg2 {[%clk 0:00:04]}  Kf3 {[%clk 0:00:50]} 64. Rg3+ {[%clk 0:00:05]}  Kf4 {[%clk 0:00:50]} 65. Rg2 {[%clk 0:00:05]}  Qb8 {[%clk 0:00:50]} 66. Rg3 {[%clk 0:00:05]}  Qe5 {[%clk 0:00:49]} 67. Rg2 {[%clk 0:00:06]}  Kf3+ {[%clk 0:00:50]} 68. Rg3+ {[%clk 0:00:06]}  Kf2 {[%clk 0:00:50]} 69. Kh3 {[%clk 0:00:06]}  Qe1 {[%clk 0:00:49]} 70. Rg2+ {[%clk 0:00:07]}  Kf3 {[%clk 0:00:50]} 71. Rg3+ {[%clk 0:00:07]}  Kf4 {[%clk 0:00:51]} 72. Rg2 {[%clk 0:00:07]}  Qh1+ {[%clk 0:00:50]} 73. Rh2 {[%clk 0:00:08]}  Qf3+ {[%clk 0:00:51]} 74. Ng3 {[%clk 0:00:08]}  Qxg3# {[%clk 0:00:52]} 0-1


[Site "https://www.chess.com"]

[Event "Titled Tuesday Blitz June 21 Early 2022"]
[White "Araujo Sanchez, Josue"]
[Black "Urquhart, Ed"]
[WhiteFideId "6416896"]
[BlackFideId "2603748"]
[WhiteElo "2339"]
[BlackElo "2184"]
[Result "0-1"]
[Round "04"]
[TimeControl "180+1"]
[Date "2022.06.21"]
[WhiteClock "0:00:36"]
[BlackClock "0:00:43"]

1. d4 {[%clk 0:03:00]}  Nf6 {[%clk 0:02:58]} 2. c4 {[%clk 0:02:54]}  e6 {[%clk 0:02:58]} 3. g3 {[%clk 0:02:52]}  d5 {[%clk 0:02:57]} 4. Bg2 {[%clk 0:02:53]}  Be7 {[%clk 0:02:57]} 5. Nf3 {[%clk 0:02:53]}  O-O {[%clk 0:02:57]} 6. O-O {[%clk 0:02:54]}  dxc4 {[%clk 0:02:58]} 7. a4 {[%clk 0:02:54]}  c5 {[%clk 0:02:51]} 8. dxc5 {[%clk 0:02:18]}  Na6 {[%clk 0:02:46]} 9. c6 {[%clk 0:02:13]}  Qc7 {[%clk 0:02:24]} 10. Nfd2 {[%clk 0:02:09]}  Rd8 {[%clk 0:02:14]} 11. Qc2 {[%clk 0:02:09]}  Nb4 {[%clk 0:02:11]} 12. Qxc4 {[%clk 0:02:00]}  Nxc6 {[%clk 0:02:11]} 13. Nc3 {[%clk 0:01:59]}  Bd7 {[%clk 0:02:05]} 14. Nb3 {[%clk 0:01:57]}  Rac8 {[%clk 0:02:04]} 15. Bf4 {[%clk 0:01:48]}  e5 {[%clk 0:02:00]} 16. Be3 {[%clk 0:01:47]}  Be6 {[%clk 0:01:58]} 17. Qb5 {[%clk 0:01:28]}  a6 {[%clk 0:01:58]} 18. Bb6 {[%clk 0:01:28]}  axb5 {[%clk 0:01:56]} 19. Bxc7 {[%clk 0:01:27]}  Rxc7 {[%clk 0:01:50]} 20. axb5 {[%clk 0:01:22]}  Bxb3 {[%clk 0:01:46]} 21. bxc6 {[%clk 0:01:21]}  bxc6 {[%clk 0:01:47]} 22. Ra6 {[%clk 0:01:19]}  Bd5 {[%clk 0:01:43]} 23. Bh3 {[%clk 0:01:16]}  Bc4 {[%clk 0:01:36]} 24. Rb6 {[%clk 0:01:14]}  h6 {[%clk 0:01:32]} 25. Bg2 {[%clk 0:01:12]}  Bd5 {[%clk 0:01:27]} 26. Bh3 {[%clk 0:01:07]}  Bc5 {[%clk 0:01:16]} 27. Ra6 {[%clk 0:01:05]}  Bc4 {[%clk 0:01:14]} 28. Ra4 {[%clk 0:01:05]}  Bb5 {[%clk 0:01:10]} 29. Ra2 {[%clk 0:01:03]}  Rd2 {[%clk 0:01:02]} 30. Re1 {[%clk 0:00:48]}  g6 {[%clk 0:00:57]} 31. e3 {[%clk 0:00:42]}  Bb4 {[%clk 0:00:50]} 32. Ra8+ {[%clk 0:00:41]}  Kg7 {[%clk 0:00:50]} 33. Rc1 {[%clk 0:00:35]}  Bxc3 {[%clk 0:00:47]} 34. bxc3 {[%clk 0:00:36]}  Bc4 {[%clk 0:00:43]} 0-1


[Site "https://www.chess.com"]

[Event "Titled Tuesday Blitz June 21 Early 2022"]
[White "Arpita, Mukherjee"]
[Black "Wagner, Dinara"]
[WhiteFideId "5056403"]
[BlackFideId "24157570"]
[WhiteElo "1934"]
[BlackElo "2216"]
[Result "1-0"]
[Round "04"]
[TimeControl "180+1"]
[Date "2022.06.21"]
[WhiteClock "0:00:16"]
[BlackClock "0:00:22"]

1. e4 {[%clk 0:01:22]}  c5 {[%clk 0:02:55]} 2. Nf3 {[%clk 0:01:22]}  d6 {[%clk 0:02:54]} 3. Bb5+ {[%clk 0:01:23]}  Nd7 {[%clk 0:02:54]} 4. d4 {[%clk 0:01:20]}  cxd4 {[%clk 0:02:54]} 5. Qxd4 {[%clk 0:01:21]}  a6 {[%clk 0:02:54]} 6. Bxd7+ {[%clk 0:01:20]}  Bxd7 {[%clk 0:02:55]} 7. c4 {[%clk 0:01:21]}  e5 {[%clk 0:02:54]} 8. Qd3 {[%clk 0:01:20]}  h6 {[%clk 0:02:54]} 9. Nc3 {[%clk 0:01:20]}  Rc8 {[%clk 0:02:52]} 10. O-O {[%clk 0:01:19]}  Nf6 {[%clk 0:02:50]} 11. b3 {[%clk 0:01:19]}  b5 {[%clk 0:02:45]} 12. a4 {[%clk 0:01:14]}  bxc4 {[%clk 0:02:44]} 13. bxc4 {[%clk 0:01:15]}  Qc7 {[%clk 0:02:41]} 14. Nd2 {[%clk 0:01:11]}  Be7 {[%clk 0:02:38]} 15. Ba3 {[%clk 0:01:12]}  O-O {[%clk 0:02:37]} 16. Rac1 {[%clk 0:01:09]}  Be6 {[%clk 0:02:06]} 17. Nd5 {[%clk 0:01:05]}  Bxd5 {[%clk 0:02:06]} 18. cxd5 {[%clk 0:00:59]}  Qa5 {[%clk 0:02:06]} 19. Nc4 {[%clk 0:00:57]}  Qd8 {[%clk 0:01:50]} 20. Bb4 {[%clk 0:00:50]}  Rb8 {[%clk 0:01:44]} 21. Bd2 {[%clk 0:00:44]}  Nd7 {[%clk 0:01:42]} 22. Na5 {[%clk 0:00:41]}  Ra8 {[%clk 0:01:27]} 23. Nc6 {[%clk 0:00:40]}  Qe8 {[%clk 0:01:27]} 24. Bb4 {[%clk 0:00:38]}  f5 {[%clk 0:01:00]} 25. Qa3 {[%clk 0:00:34]}  Rf7 {[%clk 0:00:46]} 26. exf5 {[%clk 0:00:29]}  e4 {[%clk 0:00:40]} 27. Bxd6 {[%clk 0:00:25]}  Bg5 {[%clk 0:00:40]} 28. Rce1 {[%clk 0:00:21]}  Rxf5 {[%clk 0:00:40]} 29. Qb3 {[%clk 0:00:15]}  Kh8 {[%clk 0:00:39]} 30. Kh1 {[%clk 0:00:14]}  Qf7 {[%clk 0:00:37]} 31. Rd1 {[%clk 0:00:13]}  e3 {[%clk 0:00:38]} 32. Qd3 {[%clk 0:00:07]}  Rxf2 {[%clk 0:00:23]} 33. Rxf2 {[%clk 0:00:07]}  exf2 {[%clk 0:00:24]} 34. Rf1 {[%clk 0:00:07]}  Re8 {[%clk 0:00:24]} 35. h3 {[%clk 0:00:05]}  Re1 {[%clk 0:00:24]} 36. Bg3 {[%clk 0:00:04]}  Rxf1+ {[%clk 0:00:22]} 37. Qxf1 {[%clk 0:00:05]}  Qxd5 {[%clk 0:00:22]} 38. Nb4 {[%clk 0:00:04]}  Be3 {[%clk 0:00:21]} 39. Nxd5 {[%clk 0:00:04]}  Bd4 {[%clk 0:00:21]} 40. Ne7 {[%clk 0:00:04]}  Bf6 {[%clk 0:00:19]} 41. Nf5 {[%clk 0:00:05]}  Nc5 {[%clk 0:00:16]} 42. Bxf2 {[%clk 0:00:06]}  Ne4 {[%clk 0:00:16]} 43. Bd4 {[%clk 0:00:06]}  Bxd4 {[%clk 0:00:15]} 44. Qd3 {[%clk 0:00:07]}  Ng3+ {[%clk 0:00:16]} 45. Qxg3 {[%clk 0:00:06]}  Bg1 {[%clk 0:00:15]} 46. Qb8+ {[%clk 0:00:06]}  Kh7 {[%clk 0:00:15]} 47. Kxg1 {[%clk 0:00:07]}  Kg6 {[%clk 0:00:16]} 48. Qc7 {[%clk 0:00:08]}  Kxf5 {[%clk 0:00:16]} 49. Qxg7 {[%clk 0:00:09]}  Ke4 {[%clk 0:00:17]} 50. Qxh6 {[%clk 0:00:09]}  Kd5 {[%clk 0:00:18]} 51. Qxa6 {[%clk 0:00:09]}  Kc5 {[%clk 0:00:18]} 52. h4 {[%clk 0:00:10]}  Kb4 {[%clk 0:00:18]} 53. h5 {[%clk 0:00:11]}  Ka3 {[%clk 0:00:19]} 54. h6 {[%clk 0:00:12]}  Ka2 {[%clk 0:00:20]} 55. h7 {[%clk 0:00:13]}  Kb3 {[%clk 0:00:20]} 56. h8=Q {[%clk 0:00:14]}  Ka3 {[%clk 0:00:20]} 57. g4 {[%clk 0:00:14]}  Kb3 {[%clk 0:00:21]} 58. g5 {[%clk 0:00:15]}  Ka2 {[%clk 0:00:22]} 59. g6 {[%clk 0:00:16]} 1-0


[Site "https://www.chess.com"]

[Event "Titled Tuesday Blitz June 21 Early 2022"]
[White "Aslanov, Umid"]
[Black "Harvey, Marcus R"]
[WhiteFideId "13412620"]
[BlackFideId "400092"]
[WhiteElo "1796"]
[BlackElo "2485"]
[Result "0-1"]
[Round "04"]
[TimeControl "180+1"]
[Date "2022.06.21"]
[WhiteClock "0:00:18"]
[BlackClock "0:00:10"]

1. e4 {[%clk 0:03:00]}  c6 {[%clk 0:02:59]} 2. d4 {[%clk 0:02:58]}  d5 {[%clk 0:02:59]} 3. Nd2 {[%clk 0:02:59]}  dxe4 {[%clk 0:03:00]} 4. Nxe4 {[%clk 0:03:00]}  Nf6 {[%clk 0:03:00]} 5. Nxf6+ {[%clk 0:03:01]}  exf6 {[%clk 0:03:01]} 6. c3 {[%clk 0:03:02]}  Bd6 {[%clk 0:03:02]} 7. Bd3 {[%clk 0:03:02]}  O-O {[%clk 0:03:03]} 8. Qc2 {[%clk 0:03:03]}  Re8+ {[%clk 0:03:03]} 9. Ne2 {[%clk 0:03:03]}  h5 {[%clk 0:03:04]} 10. O-O {[%clk 0:03:03]}  h4 {[%clk 0:03:03]} 11. h3 {[%clk 0:03:04]}  Nd7 {[%clk 0:03:04]} 12. c4 {[%clk 0:03:04]}  Nf8 {[%clk 0:03:03]} 13. Be3 {[%clk 0:03:04]}  Be6 {[%clk 0:03:04]} 14. Rad1 {[%clk 0:03:00]}  Rc8 {[%clk 0:02:56]} 15. Nc3 {[%clk 0:02:53]}  a6 {[%clk 0:02:37]} 16. Qb1 {[%clk 0:02:43]}  b5 {[%clk 0:02:25]} 17. d5 {[%clk 0:02:38]}  cxd5 {[%clk 0:02:24]} 18. cxd5 {[%clk 0:02:39]}  Bd7 {[%clk 0:02:23]} 19. Ne4 {[%clk 0:02:38]}  Bb8 {[%clk 0:02:21]} 20. Bd4 {[%clk 0:02:20]}  Ng6 {[%clk 0:02:15]} 21. Nxf6+ {[%clk 0:02:13]}  gxf6 {[%clk 0:02:14]} 22. Bxg6 {[%clk 0:02:13]}  Qe7 {[%clk 0:01:54]} 23. d6 {[%clk 0:01:25]}  Bxd6 {[%clk 0:01:39]} 24. Rfe1 {[%clk 0:01:22]}  Be5 {[%clk 0:01:38]} 25. Bxe5 {[%clk 0:01:16]}  fxe5 {[%clk 0:01:39]} 26. Bf5 {[%clk 0:01:08]}  Rcd8 {[%clk 0:01:13]} 27. Qe4 {[%clk 0:01:04]}  Bxf5 {[%clk 0:01:13]} 28. Qxf5 {[%clk 0:01:05]}  Rxd1 {[%clk 0:01:13]} 29. Rxd1 {[%clk 0:01:06]}  e4 {[%clk 0:01:01]} 30. Qg4+ {[%clk 0:01:04]}  Kf8 {[%clk 0:01:00]} 31. Rd7 {[%clk 0:00:41]}  Qf6 {[%clk 0:01:00]} 32. Qh5 {[%clk 0:00:36]}  Re5 {[%clk 0:00:52]} 33. Qg4 {[%clk 0:00:31]}  e3 {[%clk 0:00:44]} 34. fxe3 {[%clk 0:00:29]}  Rxe3 {[%clk 0:00:44]} 35. Qb4+ {[%clk 0:00:29]}  Kg8 {[%clk 0:00:41]} 36. Rd6 {[%clk 0:00:27]}  Qg5 {[%clk 0:00:20]} 37. Qd2 {[%clk 0:00:25]}  Qg3 {[%clk 0:00:16]} 38. Rd8+ {[%clk 0:00:22]}  Kh7 {[%clk 0:00:17]} 39. Qc2+ {[%clk 0:00:19]}  Kg7 {[%clk 0:00:13]} 40. Rd1 {[%clk 0:00:19]}  b4 {[%clk 0:00:07]} 41. Qd2 {[%clk 0:00:18]}  a5 {[%clk 0:00:06]} 42. Qd4+ {[%clk 0:00:18]}  Kh7 {[%clk 0:00:07]} 43. Qf6 {[%clk 0:00:17]}  Re1+ {[%clk 0:00:06]} 44. Rxe1 {[%clk 0:00:18]}  Qxe1+ {[%clk 0:00:06]} 45. Kh2 {[%clk 0:00:17]}  Qg3+ {[%clk 0:00:07]} 46. Kg1 {[%clk 0:00:18]}  Kg8 {[%clk 0:00:08]} 47. Qd8+ {[%clk 0:00:18]}  Kg7 {[%clk 0:00:08]} 48. Qd4+ {[%clk 0:00:18]}  Kh7 {[%clk 0:00:08]} 49. Qe4+ {[%clk 0:00:18]}  Kh6 {[%clk 0:00:08]} 50. Qf5 {[%clk 0:00:18]}  Kg7 {[%clk 0:00:07]} 51. Qxa5 {[%clk 0:00:17]}  Qe1+ {[%clk 0:00:07]} 52. Kh2 {[%clk 0:00:18]}  Qg3+ {[%clk 0:00:08]} 53. Kg1 {[%clk 0:00:18]}  Qe3+ {[%clk 0:00:07]} 54. Kf1 {[%clk 0:00:18]}  Qc1+ {[%clk 0:00:06]} 55. Kf2 {[%clk 0:00:18]}  Qxb2+ {[%clk 0:00:07]} 56. Kf3 {[%clk 0:00:17]}  Qc3+ {[%clk 0:00:08]} 57. Kf2 {[%clk 0:00:18]}  Qg3+ {[%clk 0:00:08]} 58. Kf1 {[%clk 0:00:17]}  Qd3+ {[%clk 0:00:09]} 59. Kg1 {[%clk 0:00:18]}  Qd1+ {[%clk 0:00:08]} 60. Kh2 {[%clk 0:00:18]}  Qd6+ {[%clk 0:00:09]} 61. Kg1 {[%clk 0:00:18]}  Qd4+ {[%clk 0:00:10]} 62. Kh2 {[%clk 0:00:18]}  f6 {[%clk 0:00:10]} 63. Qc7+ {[%clk 0:00:18]}  Kg6 {[%clk 0:00:10]} 64. Qc2+ {[%clk 0:00:18]}  f5 {[%clk 0:00:10]} 65. Qc6+ {[%clk 0:00:19]}  Kg5 {[%clk 0:00:11]} 66. Qe6 {[%clk 0:00:17]}  Qf4+ {[%clk 0:00:11]} 67. Kg1 {[%clk 0:00:16]}  Qc1+ {[%clk 0:00:10]} 68. Kh2 {[%clk 0:00:16]}  Qf4+ {[%clk 0:00:10]} 69. Kg1 {[%clk 0:00:17]}  Qd4+ {[%clk 0:00:10]} 70. Kh2 {[%clk 0:00:17]}  Qe4 {[%clk 0:00:11]} 71. Qg8+ {[%clk 0:00:16]}  Kf4 {[%clk 0:00:11]} 72. Qb8+ {[%clk 0:00:16]}  Ke3 {[%clk 0:00:11]} 73. Qb6+ {[%clk 0:00:16]}  Kd3 {[%clk 0:00:11]} 74. Qd6+ {[%clk 0:00:16]}  Kc3 {[%clk 0:00:11]} 75. Qa6 {[%clk 0:00:11]}  Kb2 {[%clk 0:00:11]} 76. Qa4 {[%clk 0:00:11]}  Qe5+ {[%clk 0:00:11]} 77. Kg1 {[%clk 0:00:12]}  Qd4+ {[%clk 0:00:11]} 78. Kh2 {[%clk 0:00:12]}  f4 {[%clk 0:00:10]} 79. Qb3+ {[%clk 0:00:12]}  Ka1 {[%clk 0:00:11]} 80. Qc2 {[%clk 0:00:12]}  Qc3 {[%clk 0:00:10]} 81. Qe2 {[%clk 0:00:09]}  Qg3+ {[%clk 0:00:09]} 82. Kh1 {[%clk 0:00:10]}  Qe3 {[%clk 0:00:06]} 83. Qc2 {[%clk 0:00:10]}  Qe1+ {[%clk 0:00:06]} 84. Kh2 {[%clk 0:00:10]}  Qg3+ {[%clk 0:00:07]} 85. Kh1 {[%clk 0:00:10]}  Qc3 {[%clk 0:00:07]} 86. Qe2 {[%clk 0:00:10]}  Qb2 {[%clk 0:00:07]} 87. Qf3 {[%clk 0:00:09]}  Qc1+ {[%clk 0:00:06]} 88. Kh2 {[%clk 0:00:09]}  Kxa2 {[%clk 0:00:06]} 89. Qf2+ {[%clk 0:00:10]}  Ka3 {[%clk 0:00:06]} 90. Qxh4 {[%clk 0:00:10]}  Qe3 {[%clk 0:00:05]} 91. Qg5 {[%clk 0:00:09]}  Qg3+ {[%clk 0:00:04]} 92. Qxg3+ {[%clk 0:00:09]}  fxg3+ {[%clk 0:00:05]} 93. Kxg3 {[%clk 0:00:10]}  b3 {[%clk 0:00:06]} 94. h4 {[%clk 0:00:11]}  b2 {[%clk 0:00:07]} 95. h5 {[%clk 0:00:12]}  b1=Q {[%clk 0:00:07]} 96. Kg4 {[%clk 0:00:12]}  Kb4 {[%clk 0:00:07]} 97. Kg5 {[%clk 0:00:12]}  Kc5 {[%clk 0:00:07]} 98. h6 {[%clk 0:00:13]}  Qh7 {[%clk 0:00:07]} 99. Kh5 {[%clk 0:00:13]}  Kd6 {[%clk 0:00:07]} 100. g4 {[%clk 0:00:14]}  Ke6 {[%clk 0:00:08]} 101. g5 {[%clk 0:00:15]}  Kf7 {[%clk 0:00:08]} 102. Kg4 {[%clk 0:00:14]}  Kg6 {[%clk 0:00:09]} 103. Kf4 {[%clk 0:00:15]}  Qf7+ {[%clk 0:00:10]} 104. Ke5 {[%clk 0:00:15]}  Kxg5 {[%clk 0:00:09]} 105. Kd6 {[%clk 0:00:16]}  Qf6+ {[%clk 0:00:10]} 106. Kd7 {[%clk 0:00:16]}  Qxh6 {[%clk 0:00:11]} 107. Ke8 {[%clk 0:00:17]}  Qg7 {[%clk 0:00:11]} 108. Kd8 {[%clk 0:00:17]}  Kf6 {[%clk 0:00:11]} 109. Ke8 {[%clk 0:00:18]}  Qe7# {[%clk 0:00:10]} 0-1


[Site "https://www.chess.com"]

[Event "Titled Tuesday Blitz June 21 Early 2022"]
[White "Barp, Alberto"]
[Black "Pham, Le Thao Nguyen"]
[WhiteFideId "872555"]
[BlackFideId "12401226"]
[WhiteElo "2229"]
[BlackElo "2282"]
[Result "1-0"]
[Round "04"]
[TimeControl "180+1"]
[Date "2022.06.21"]
[WhiteClock "0:00:50"]
[BlackClock "0:00:02"]

1. d4 {[%clk 0:03:00]}  d5 {[%clk 0:02:46]} 2. Nf3 {[%clk 0:02:59]}  c6 {[%clk 0:02:44]} 3. c4 {[%clk 0:02:59]}  Nf6 {[%clk 0:02:43]} 4. e3 {[%clk 0:02:59]}  Bg4 {[%clk 0:02:39]} 5. h3 {[%clk 0:02:59]}  Bh5 {[%clk 0:02:24]} 6. Nc3 {[%clk 0:02:55]}  e6 {[%clk 0:02:22]} 7. g4 {[%clk 0:02:54]}  Bg6 {[%clk 0:02:18]} 8. Ne5 {[%clk 0:02:54]}  Nfd7 {[%clk 0:02:16]} 9. Nxg6 {[%clk 0:02:53]}  hxg6 {[%clk 0:02:17]} 10. Bd2 {[%clk 0:02:46]}  Be7 {[%clk 0:02:10]} 11. Qc2 {[%clk 0:02:39]}  Nb6 {[%clk 0:01:58]} 12. b3 {[%clk 0:02:29]}  N8d7 {[%clk 0:01:53]} 13. Be2 {[%clk 0:02:15]}  Bh4 {[%clk 0:01:49]} 14. Rh2 {[%clk 0:01:58]}  Qb8 {[%clk 0:01:31]} 15. Rh1 {[%clk 0:01:58]}  Qd8 {[%clk 0:01:28]} 16. e4 {[%clk 0:01:49]}  dxc4 {[%clk 0:00:37]} 17. bxc4 {[%clk 0:01:50]}  c5 {[%clk 0:00:38]} 18. dxc5 {[%clk 0:01:51]}  Nxc5 {[%clk 0:00:37]} 19. Be3 {[%clk 0:01:52]}  Rc8 {[%clk 0:00:31]} 20. Rd1 {[%clk 0:01:51]}  Qe7 {[%clk 0:00:30]} 21. Nb5 {[%clk 0:01:50]}  O-O {[%clk 0:00:27]} 22. Nd6 {[%clk 0:01:47]}  Rc6 {[%clk 0:00:23]} 23. e5 {[%clk 0:01:46]}  Ncd7 {[%clk 0:00:19]} 24. Bf3 {[%clk 0:01:26]}  Nxe5 {[%clk 0:00:17]} 25. Bxc6 {[%clk 0:01:25]}  bxc6 {[%clk 0:00:16]} 26. Qe4 {[%clk 0:01:21]}  Qf6 {[%clk 0:00:13]} 27. Ke2 {[%clk 0:01:15]}  g5 {[%clk 0:00:09]} 28. Bd4 {[%clk 0:01:05]}  Nbd7 {[%clk 0:00:09]} 29. c5 {[%clk 0:01:05]}  Qf4 {[%clk 0:00:09]} 30. Qxf4 {[%clk 0:01:02]}  gxf4 {[%clk 0:00:10]} 31. f3 {[%clk 0:01:03]}  Rb8 {[%clk 0:00:03]} 32. Rb1 {[%clk 0:01:02]}  Rd8 {[%clk 0:00:02]} 33. Rhd1 {[%clk 0:01:01]}  Be7 {[%clk 0:00:02]} 34. Ne4 {[%clk 0:00:58]}  Rc8 {[%clk 0:00:01]} 35. g5 {[%clk 0:00:55]}  f5 {[%clk 0:00:01]} 36. gxf6 {[%clk 0:00:55]}  gxf6 {[%clk 0:00:02]} 37. Rg1+ {[%clk 0:00:51]}  Kf7 {[%clk 0:00:02]} 38. Rb7 {[%clk 0:00:50]}  Nf8 {[%clk 0:00:02]} 39. Nd6# {[%clk 0:00:50]} 1-0


[Site "https://www.chess.com"]

[Event "Titled Tuesday Blitz June 21 Early 2022"]
[White "Begunov, Konstantin"]
[Black "Tica, Sven"]
[WhiteFideId "4118510"]
[BlackFideId "14526948"]
[WhiteElo "2262"]
[BlackElo "2346"]
[Result "0-1"]
[Round "04"]
[TimeControl "180+1"]
[Date "2022.06.21"]
[WhiteClock "0:00:04"]
[BlackClock "0:00:31"]

1. d4 {[%clk 0:03:00]}  g6 {[%clk 0:03:00]} 2. c4 {[%clk 0:03:00]}  Bg7 {[%clk 0:03:00]} 3. Nc3 {[%clk 0:03:01]}  d6 {[%clk 0:02:59]} 4. e4 {[%clk 0:03:01]}  Nd7 {[%clk 0:02:59]} 5. Be3 {[%clk 0:03:00]}  e5 {[%clk 0:02:59]} 6. Nge2 {[%clk 0:02:59]}  Ne7 {[%clk 0:02:58]} 7. Qd2 {[%clk 0:02:59]}  O-O {[%clk 0:02:57]} 8. f3 {[%clk 0:02:53]}  f5 {[%clk 0:02:54]} 9. O-O-O {[%clk 0:02:51]}  a6 {[%clk 0:02:46]} 10. Kb1 {[%clk 0:02:50]}  Rb8 {[%clk 0:02:46]} 11. Bg5 {[%clk 0:02:34]}  Qe8 {[%clk 0:02:40]} 12. dxe5 {[%clk 0:02:11]}  Nxe5 {[%clk 0:02:36]} 13. Nd4 {[%clk 0:02:10]}  N7c6 {[%clk 0:02:30]} 14. Be3 {[%clk 0:01:48]}  Bd7 {[%clk 0:02:26]} 15. Be2 {[%clk 0:01:30]}  fxe4 {[%clk 0:02:14]} 16. Nxe4 {[%clk 0:01:28]}  Bf5 {[%clk 0:02:14]} 17. Nxf5 {[%clk 0:01:16]}  Rxf5 {[%clk 0:02:10]} 18. Rhe1 {[%clk 0:01:10]}  b6 {[%clk 0:02:07]} 19. Bf1 {[%clk 0:01:05]}  Qf8 {[%clk 0:02:05]} 20. Nc3 {[%clk 0:00:59]}  Re8 {[%clk 0:02:03]} 21. Nd5 {[%clk 0:00:59]}  Qf7 {[%clk 0:01:55]} 22. Ka1 {[%clk 0:00:51]}  a5 {[%clk 0:01:52]} 23. Qc2 {[%clk 0:00:41]}  Nb4 {[%clk 0:01:34]} 24. Nxb4 {[%clk 0:00:37]}  axb4 {[%clk 0:01:35]} 25. Qa4 {[%clk 0:00:37]}  c5 {[%clk 0:00:52]} 26. Bc1 {[%clk 0:00:28]}  Qf8 {[%clk 0:00:48]} 27. f4 {[%clk 0:00:21]}  Ra8 {[%clk 0:00:43]} 28. Qc2 {[%clk 0:00:17]}  Nc6 {[%clk 0:00:42]} 29. Be3 {[%clk 0:00:11]}  Ra3 {[%clk 0:00:40]} 30. Kb1 {[%clk 0:00:09]}  Ra5 {[%clk 0:00:34]} 31. Qd3 {[%clk 0:00:05]}  Qa8 {[%clk 0:00:33]} 32. Qxd6 {[%clk 0:00:04]}  Rxa2 {[%clk 0:00:31]} 0-1


[Site "https://www.chess.com"]